bitfinex-derivatives/quotes_SOLF0:USTF0_20250901
["timestamp","ask_amount","ask_price","bid_price","bid_amount"]
[1756733538877,4.97,200.53,200.44,0.03428868]
[1756733539070,4.97,200.48,200.44,0.03428868]
[1756733539374,45.62,200.47,200.44,0.03428868]
[1756733539673,4.97,200.46,200.44,0.03428868]
[1756733540173,4.94,200.45,200.31,4.4928]
[1756733540575,4.94,200.45,200.28,7.93]
[1756733540775,4.94,200.42,200.28,7.93]
[1756733541975,45.86,200.44,200.32,7.93]
[1756733542374,45.86,200.44,200.35,4.4918]
[1756733542873,45.86,200.44,200.36,4.4914]
[1756733543074,4.94,200.46,200.36,4.4914]
[1756733543271,125.9,200.45,200.32,7.93]
[1756733543675,125.9,200.45,200.34,4.492]
[1756733543876,4.94,200.44,200.32,7.93]
[1756733544076,4.94,200.43,200.28,12.4232]
[1756733544275,4.94,200.43,200.28,7.93]
[1756733544878,4.94,200.43,200.3,4.4928]
[1756733545079,4.94,200.43,200.28,7.93]
[1756733545676,4.94,200.43,200.21,22.54]
[1756733545677,4.94,200.43,200.31,7.93]
[1756733545979,37.6,200.43,200.31,7.93]
[1756733546179,37.6,200.43,200.34,4.4921]
[1756733546681,37.6,200.43,200.32,4.4925]
[1756733547078,4.94,200.42,200.31,7.93]
[1756733547381,4.94,200.42,200.27,7.93]
[1756733547778,4.94,200.4,200.27,7.93]
[1756733547977,335.42,200.47,200.27,7.93]
[1756733548184,4.94,200.46,200.3,7.93]
[1756733548380,125.9,200.45,200.33,12.38726293]
[1756733548582,4.94,200.46,200.33,12.38726293]
[1756733548784,125.9,200.45,200.33,12.38726293]
[1756733549282,125.9,200.45,200.33,7.93]
[1756733549683,125.9,200.45,200.34,4.4919]
[1756733549885,125.9,200.45,200.33,7.93]
[1756733551484,4.94,200.44,200.3,4.493]
[1756733551683,4.94,200.44,200.28,7.93]
[1756733552183,130.35726293,200.45,200.28,7.93]
[1756733552184,4.94,200.41,200.28,7.93]
[1756733552787,4.94,200.41,200.3,4.4928]
[1756733553587,0.03162998,200.38,200.3,4.4928]
[1756733553984,0.03162998,200.38,200.28,7.93]
[1756733554190,0.03162998,200.38,200.31,7.93]
[1756733555281,0.03162998,200.38,200.31,12.4228]
[1756733557090,0.03162998,200.38,200.31,7.93]
[1756733557685,0.03162998,200.38,200.26,130.34264539]
[1756733557986,0.03162998,200.38,200.2,5.46036005]
[1756733557987,4.94,200.37,200.25,7.58]
[1756733558687,4.45726293,200.36,200.25,7.58]
[1756733558891,53.3,200.35,200.25,7.58]
[1756733559287,4.94,200.34,200.25,7.58]
[1756733559889,4.94,200.34,200.17,4.1005748]
[1756733560084,4.94,200.32,200.18,7.58]
[1756733560592,14.52,200.31,200.18,7.58]
[1756733561088,14.52,200.31,200.19,4.4954]
[1756733561493,4.94,200.3,200.18,7.58]
[1756733561788,0.03148394,200.27,200.18,7.58]
[1756733562390,0.03148394,200.27,200.21,7.58]
[1756733562893,12.86,200.3,200.21,7.58]
[1756733563985,12.86,200.3,200.21,12.0749]
[1756733564191,12.86,200.3,200.21,7.58]
[1756733564489,17.8,200.3,200.21,7.58]
[1756733564889,25.94,200.3,200.21,7.58]
[1756733565291,25.94,200.3,200.16,7.58]
[1756733565292,4.94,200.29,200.16,7.58]
[1756733565497,0.03167861,200.28,200.16,7.58]
[1756733565895,4.94,200.27,200.16,7.58]
[1756733566095,48.72,200.26,200.16,7.58]
[1756733566792,87.64,200.25,200.16,7.58]
[1756733566992,4.94,200.27,200.16,7.58]
[1756733567296,4.94,200.25,200.16,7.58]
[1756733567899,0.03191776,200.23,200.16,7.58]
[1756733572792,56.95191776,200.23,200.16,7.58]
[1756733573906,0.03191776,200.23,200.16,7.58]
[1756733576499,0.03191776,200.23,200.08,4.45726293]
[1756733576701,0.03191776,200.23,200.09,7.58]
[1756733577000,4.94,200.24,200.09,7.58]
[1756733577396,88.36,200.23,200.12,7.58]
[1756733578101,0.03161284,200.2,200.12,7.58]
[1756733580294,0.03161284,200.2,200.14,7.58]
[1756733580800,46.12,200.19,200.07,7.58]
[1756733581398,4.94,200.18,200.07,7.58]
[1756733581613,4.94,200.14,200.0,7.58]
[1756733581898,45.72,200.13,200.03,7.58]
[1756733582497,0.0325408,200.1,200.04,4.45726293]
[1756733582694,0.0325408,200.1,200.05,7.58]
[1756733582908,0.0325408,200.1,199.96,7.58]
[1756733583095,0.0325408,200.1,200.03,7.58]
[1756733583301,85.84,200.15,200.03,12.03726293]
[1756733583499,85.84,200.15,200.04,7.58]
[1756733584306,0.03240549,200.12,200.04,7.58]
[1756733585204,4.97240549,200.12,200.04,7.58]
[1756733586000,46.27240549,200.12,200.04,7.58]
[1756733586601,4.97240549,200.12,200.04,7.58]
[1756733586801,0.03240549,200.12,200.04,7.58]
[1756733587004,0.03240549,200.12,200.04,12.03726293]
[1756733587300,0.03240549,200.12,200.05,7.58]
[1756733587505,0.03240549,200.12,200.07,4.45726293]
[1756733587700,0.03240549,200.12,200.1,4.45726293]
[1756733588005,335.7,200.19,200.11,7.68]
[1756733588804,335.7,200.19,200.11,12.1771]
[1756733589202,335.7,200.19,200.13,0.0373287]
[1756733590202,340.68,200.19,200.13,0.0373287]
[1756733590404,335.7,200.19,200.14,7.68]
[1756733590709,126.08,200.28,200.18,7.68]
[1756733591205,126.08,200.28,200.19,4.4953]
[1756733591400,126.12,200.29,200.21,0.03611644]
[1756733591808,335.82,200.33,200.21,7.71611644]
[1756733592003,461.94,200.33,200.21,7.71611644]
[1756733592402,461.96,200.33,200.21,7.71611644]
[1756733592605,4.98,200.32,200.21,7.71611644]
[1756733595606,4.98,200.32,200.23,4.45726293]
[1756733595807,126.08,200.31,200.23,4.45726293]
[1756733596413,126.08,200.31,200.25,0.03562263]
[1756733597703,4.98,200.32,200.25,0.03562263]
[1756733597909,125.98,200.32,200.25,7.71562263]
[1756733598815,335.82,200.33,200.25,7.71562263]
[1756733599011,4.98,200.37,200.27,7.68]
[1756733599216,126.02,200.36,200.27,12.13726293]
[1756733599813,126.02,200.36,200.29,0.03189663]
[1756733600010,126.1,200.37,200.29,0.03189663]
[1756733600518,4.98,200.41,200.29,0.03189663]
[1756733600706,46.72,200.4,200.29,0.03189663]
[1756733601014,46.72,200.4,200.3,12.13726293]
[1756733601817,4.98,200.41,200.33,4.45726293]
[1756733601818,91.56,200.41,200.33,4.45726293]
[1756733602315,1438.0,200.52,200.37,7.68]
[1756733602316,4.96,200.52,200.37,7.68]
[1756733602518,8.98,200.51,200.37,7.68]
[1756733602816,4.96,200.5,200.4,7.68]
[1756733603318,4.96,200.5,200.42,0.03151289]
[1756733604420,4.96,200.56,200.43,7.68]
[1756733604625,52.86,200.55,200.44,4.45726293]
[1756733605125,52.86,200.55,200.47,0.03562475]
[1756733605524,4.96,200.54,200.47,0.03562475]
[1756733606718,126.26,200.53,200.47,0.03562475]
[1756733609029,340.09726293,200.57,200.47,0.03562475]
[1756733609030,126.22,200.52,200.47,0.03562475]
[1756733609822,4.96,200.51,200.47,0.03562475]
[1756733610329,126.22,200.52,200.47,0.03562475]
[1756733610526,4.96,200.51,200.47,0.03562475]
[1756733611526,126.18,200.5,200.47,0.03562475]
[1756733611722,4.45726293,200.56,200.47,0.03562475]
[1756733611928,4.96,200.55,200.47,0.03562475]
[1756733612128,126.18,200.54,200.47,0.03562475]
[1756733614030,4.96,200.53,200.47,0.03562475]
[1756733614637,340.6,200.57,200.47,0.03562475]
[1756733614833,126.16,200.56,200.47,0.03562475]
[1756733615033,4.96,200.55,200.47,0.03562475]
[1756733617443,4.96,200.52,200.47,0.03562475]
[1756733617643,126.22,200.51,200.47,0.03562475]
[1756733617835,4.96,200.5,200.47,0.03562475]
[1756733618037,4.92,200.49,200.35,7.67]
[1756733619042,43.16,200.48,200.35,7.67]
[1756733619243,4.92,200.49,200.38,7.67]
[1756733619540,88.74,200.49,200.38,7.67]
[1756733619739,121.0,200.5,200.41,7.67]
[1756733619949,121.0,200.51,200.41,7.67]
[1756733620247,126.28,200.51,200.41,7.67]
[1756733620442,4.92,200.53,200.43,4.45726293]
[1756733620744,126.24,200.52,200.43,4.45726293]
[1756733621145,126.24,200.52,200.41,7.67]
[1756733621849,4.92,200.51,200.37,4.45726293]
[1756733622051,4.92,200.51,200.37,12.12726293]
[1756733622541,4.92,200.51,200.41,7.67]
[1756733622849,44.48,200.51,200.41,7.67]
[1756733623039,4.92,200.51,200.41,7.67]
[1756733623245,77.96,200.54,200.41,7.67]
[1756733623448,4.92,200.55,200.44,7.67]
[1756733623647,115.34,200.54,200.44,7.67]
[1756733624840,4.92,200.53,200.44,7.67]
[1756733625446,4.92,200.53,200.42,4.45726293]
[1756733625644,4.92,200.53,200.4,7.67]
[1756733627449,126.18,200.52,200.4,7.67]
[1756733627651,341.42829597,200.57,200.43,7.67]
[1756733627843,4.92,200.55,200.43,7.67]
[1756733628654,126.14,200.56,200.43,7.67]
[1756733629051,4.92,200.55,200.43,7.67]
[1756733630153,9.37726293,200.55,200.43,7.67]
[1756733630360,4.92,200.54,200.43,7.67]
[1756733631262,126.16,200.53,200.43,7.67]
[1756733631455,126.16,200.54,200.46,7.67]
[1756733632056,131.08,200.54,200.42,12.12726293]
[1756733632260,4.92,200.54,200.42,12.12726293]
[1756733632463,126.16,200.53,200.43,7.67]
[1756733632866,335.64,200.57,200.46,7.67]
[1756733633159,126.2,200.56,200.46,7.67]
[1756733633563,335.64,200.57,200.49,7.67]
[1756733633858,335.64,200.57,200.45,12.12726293]
[1756733634064,335.64,200.57,200.46,7.67]
[1756733634259,335.64,200.57,200.49,7.67]
[1756733635853,461.98,200.57,200.49,7.67]
[1756733636467,126.28,200.59,200.49,7.67]
[1756733636763,126.32,200.59,200.5,4.45726293]
[1756733637358,131.24,200.59,200.5,4.45726293]
[1756733637556,131.24,200.59,200.49,7.67]
[1756733639967,126.32,200.59,200.44,7.67]
[1756733640164,4.92,200.58,200.44,7.67]
[1756733640563,126.24,200.57,200.47,7.67]
[1756733640767,126.24,200.57,200.49,4.45726293]
[1756733640968,126.24,200.57,200.47,7.67]
[1756733641865,0.03167805,200.54,200.47,7.67]
[1756733642064,0.03167805,200.54,200.48,4.45726293]
[1756733642665,0.03167805,200.54,200.49,7.67]
[1756733642867,0.03167805,200.54,200.48,12.12726293]
[1756733644567,0.03167805,200.54,200.48,7.67]
[1756733644874,4.92,200.53,200.44,7.67]
[1756733645968,0.03424673,200.51,200.44,7.67]
[1756733646177,0.03424673,200.51,200.46,4.45726293]
[1756733646672,4.45726293,200.63,200.46,4.45726293]
[1756733646673,4.92,200.62,200.5,7.67]
[1756733646870,4.92,200.62,200.52,4.45726293]
[1756733647875,4.92,200.63,200.5,7.67]
[1756733648076,4.92,200.62,200.55,0.03538183]
[1756733650585,126.44,200.61,200.55,0.03538183]
[1756733650776,4.92,200.6,200.55,0.03538183]
[1756733651277,131.36,200.61,200.55,0.03538183]
[1756733651978,4.45726293,200.6,200.45,8.14]
[1756733652176,4.45726293,200.57,200.41,8.14]
[1756733652377,4.88,200.53,200.41,8.14]
[1756733652576,4.45726293,200.54,200.41,8.14]
[1756733652577,4.88,200.51,200.41,8.14]
[1756733653275,4.88,200.51,200.37,8.14]
[1756733653276,0.03382294,200.48,200.37,8.14]
[1756733653474,4.88,200.47,200.37,8.14]
[1756733653976,0.03382294,200.48,200.37,12.59726293]
[1756733654379,0.03382294,200.48,200.37,4.45726293]
[1756733654581,0.03382294,200.48,200.38,8.14]
[1756733654986,0.03382294,200.48,200.4,4.45726293]
[1756733655384,0.03382294,200.48,200.41,8.14]
[1756733656985,0.03382294,200.48,200.43,4.45726293]
[1756733657184,0.03382294,200.48,200.44,8.14]
[1756733657384,427.8,200.55,200.44,8.14]
[1756733657988,0.03482242,200.52,200.44,8.14]
[1756733658487,0.03482242,200.52,200.46,4.45726293]
[1756733659379,0.03482242,200.52,200.47,8.14]
[1756733659588,0.03482242,200.52,200.46,12.59726293]
[1756733661788,0.03482242,200.52,200.46,8.14]
[1756733663688,0.03482242,200.52,200.48,8.14]
[1756733663887,0.03482242,200.52,200.47,4.45726293]
[1756733664092,0.03482242,200.52,200.5,4.45726293]
[1756733664393,0.03482242,200.52,200.51,8.14]
[1756733664692,335.24,200.63,200.51,8.14]
[1756733664889,335.24,200.63,200.53,4.45726293]
[1756733665994,335.24,200.63,200.56,0.03373178]
[1756733666783,5.5143061,200.71,200.56,0.03373178]
[1756733666784,131.42,200.68,200.57,4.80835506]
[1756733666984,126.54,200.67,200.58,4.80835506]
[1756733667188,126.54,200.67,200.59,4.80835506]
[1756733667394,4.88,200.66,200.6,4.80835506]
[1756733667697,4.88,200.66,200.61,4.80835506]
[1756733667894,4.88,200.66,200.6,0.03812192]
[1756733669096,4.88,200.64,200.6,0.03812192]
[1756733669286,126.7,200.65,200.6,0.03812192]
[1756733669491,4.88,200.64,200.6,0.03812192]
[1756733669892,4.88,200.64,200.61,4.79900351]
[1756733670092,126.7,200.65,200.62,4.79933627]
[1756733670397,4.88,200.64,200.63,4.79933627]
[1756733671291,0.5,200.64,200.6,0.03812192]
[1756733671493,126.7,200.65,200.6,0.03812192]
[1756733672700,4.45726293,200.64,200.6,0.03812192]
[1756733672900,4.45726293,200.61,200.44,8.55783773]
[1756733673093,4.45726293,200.61,200.44,4.45726293]
[1756733674103,6.38202833,200.67,200.44,4.45726293]
[1756733674295,0.0348487,200.55,200.47,4.45726293]
[1756733674890,0.0348487,200.55,200.51,4.45726293]
[1756733675088,0.0348487,200.55,200.54,4.45726293]
[1756733675493,4.28,200.64,200.54,4.45726293]
[1756733675699,49.94,200.66,200.54,4.45726293]
[1756733677198,0.08,200.64,200.58,0.03196899]
[1756733677597,0.08,200.61,200.46,4.45726293]
[1756733677789,126.78,200.6,200.46,4.45726293]
[1756733677992,126.87,200.6,200.59,0.03375944]
[1756733678194,126.87,200.6,200.46,4.45726293]
[1756733678596,126.78,200.6,200.57,0.03535255]
[1756733678796,0.09,200.59,200.57,0.03535255]
[1756733678997,0.09,200.59,200.46,4.45726293]
[1756733679197,0.09,200.59,200.56,0.03242322]
[1756733679494,0.09,200.59,200.46,4.45726293]
[1756733679903,38.42,200.58,200.5,0.03745606]
[1756733680293,78.77,200.59,200.5,0.03745606]
[1756733680698,78.77,200.59,200.51,7.61]
[1756733681100,78.68,200.59,200.51,7.61]
[1756733681895,78.77,200.59,200.51,7.61]
[1756733682396,78.77,200.59,200.5,0.03745606]
[1756733684997,0.09,200.59,200.51,7.61]
[1756733685200,0.09,200.59,200.5,0.03745606]
[1756733686707,126.62,200.58,200.5,0.03745606]
[1756733687203,0.09,200.59,200.5,0.03745606]
[1756733687408,0.09,200.59,200.51,7.61]
[1756733688306,80.9,200.61,200.51,7.61]
[1756733688807,116.42,200.62,200.51,7.61]
[1756733689206,120.87726293,200.62,200.51,7.61]
[1756733689400,0.09,200.61,200.54,0.03548521]
[1756733691209,126.54,200.6,200.54,0.03548521]
[1756733692107,126.52,200.59,200.54,0.03548521]
[1756733692303,126.46,200.58,200.54,0.03548521]
[1756733692505,0.09,200.57,200.54,0.03548521]
[1756733693403,126.42,200.58,200.54,0.03548521]
[1756733693606,126.51,200.58,200.54,0.03548521]
[1756733693811,0.09,200.57,200.54,0.03548521]
[1756733694503,126.42,200.58,200.54,0.03548521]
[1756733695103,0.09,200.57,200.54,0.03548521]
[1756733695503,126.42,200.58,200.54,0.03548521]
[1756733696011,0.09,200.57,200.54,0.03548521]
[1756733696211,0.09,200.58,200.54,0.03548521]
[1756733696603,126.38,200.59,200.54,0.03548521]
[1756733696807,0.09,200.58,200.54,0.03548521]
[1756733698116,0.08,200.58,200.54,0.03548521]
[1756733698417,126.38,200.59,200.54,0.03548521]
[1756733698618,0.08,200.58,200.54,0.03548521]
[1756733698813,126.38,200.59,200.54,0.03548521]
[1756733699316,0.08,200.58,200.54,0.03548521]
[1756733699516,126.38,200.59,200.54,0.03548521]
[1756733699820,0.08,200.58,200.54,0.03548521]
[1756733700217,0.08,200.61,200.54,0.03548521]
[1756733700423,43.48,200.6,200.54,0.03548521]
[1756733700717,0.08,200.61,200.54,0.03548521]
[1756733701619,41.28,200.62,200.54,0.03548521]
[1756733701620,0.08,200.58,200.54,0.03548521]
[1756733702016,4.45726293,200.59,200.54,0.03548521]
[1756733702220,42.0,200.58,200.54,0.03548521]
[1756733702520,101.54,200.57,200.54,0.03548521]
[1756733702725,0.08,200.56,200.54,0.03548521]
[1756733703220,0.08,200.61,200.54,0.03548521]
[1756733703421,48.96,200.62,200.55,7.61]
[1756733703620,91.08,200.64,200.55,7.61]
[1756733703918,0.86772223,200.67,200.57,7.61]
[1756733704218,127.30772223,200.67,200.57,7.61]
[1756733704417,127.30772223,200.67,200.58,4.64437376]
[1756733704620,127.30772223,200.67,200.59,4.64437376]
[1756733704820,0.86772223,200.67,200.6,4.64176833]
[1756733705021,0.86772223,200.67,200.61,4.64176833]
[1756733705229,0.08,200.66,200.62,4.64176833]
[1756733705419,0.08,200.66,200.63,4.64176833]
[1756733705720,335.16,200.68,200.65,7.61]
[1756733705922,335.16,200.68,200.66,4.64176833]
[1756733706122,335.16,200.68,200.67,4.64176833]
[1756733707023,335.24,200.68,200.67,4.64176833]
[1756733708625,341.06487699,200.68,200.65,0.03438281]
[1756733708830,340.48487699,200.68,200.65,0.03438281]
[1756733709625,340.98487699,200.68,200.65,0.03438281]
[1756733709827,0.5,200.67,200.53,8.04]
[1756733710027,340.48487699,200.68,200.53,8.04]
[1756733710028,4.45726293,200.64,200.53,8.04]
[1756733711118,0.03826241,200.61,200.53,8.04]
[1756733711719,0.03826241,200.61,200.55,8.04]
[1756733714932,0.03826241,200.61,200.5,8.04]
[1756733715322,76.02,200.63,200.5,8.04]
[1756733715728,0.03746339,200.58,200.5,8.04]
[1756733718731,40.42,200.57,200.5,8.04]
[1756733719638,0.03746339,200.58,200.5,8.04]
[1756733719935,0.03746339,200.58,200.52,8.04]
[1756733720327,35.78,200.62,200.52,8.04]
[1756733720528,0.03224794,200.57,200.52,8.04]
[1756733721033,35.22,200.64,200.52,8.04]
[1756733721334,69.26,200.65,200.52,8.07379384]
[1756733721529,340.51487699,200.68,200.54,4.45726293]
[1756733721730,101.5,200.67,200.55,8.04]
[1756733722033,336.05761406,200.68,200.55,8.04]
[1756733722237,126.16,200.67,200.58,8.04]
[1756733722831,126.16,200.67,200.6,0.03238304]
[1756733724236,0.03,200.66,200.6,0.03238304]
[1756733725331,340.48487699,200.68,200.61,8.04]
[1756733725332,336.02761406,200.68,200.61,8.04]
[1756733725628,126.12,200.67,200.61,8.04]
[1756733725832,126.15,200.67,200.6,0.03238304]
[1756733727432,126.18,200.66,200.6,0.03238304]
[1756733729232,126.18,200.65,200.61,8.04]
[1756733731041,126.21,200.65,200.61,8.04]
[1756733731239,0.03,200.64,200.6,0.03238304]
[1756733731633,126.18,200.65,200.6,0.03238304]
[1756733731844,0.03,200.61,200.6,0.03238304]
[1756733732040,2.81611114,200.61,200.6,0.03238304]
[1756733733942,126.07,200.61,200.6,0.03238304]
[1756733734334,126.02,200.61,200.6,0.03238304]
[1756733734740,126.52,200.61,200.43,8.04]
[1756733734939,4.45666609,200.55,200.43,8.04]
[1756733735253,54.92,200.54,200.43,8.04]
[1756733735939,0.03308267,200.51,200.43,8.04]
[1756733738749,2.40115082,200.5,200.43,8.04]
[1756733739048,2.40115082,200.49,200.43,8.04]
[1756733739248,2.40115082,200.48,200.37,7.71]
[1756733739546,2.40115082,200.47,200.37,7.71]
[1756733739749,2.40115082,200.46,200.37,7.71]
[1756733739946,0.03792936,200.44,200.37,7.71]
[1756733740143,2.40115082,200.43,200.37,7.71]
[1756733740345,2.40115082,200.42,200.37,7.71]
[1756733740546,2.40115082,200.41,200.37,7.71]
[1756733740847,0.03792936,200.44,200.38,7.71]
[1756733741049,2.39986255,200.43,200.36,7.71]
[1756733741348,2.39986255,200.42,200.36,7.71]
[1756733741548,2.39986255,200.41,200.36,7.71]
[1756733741749,0.03792936,200.44,200.36,7.71]
[1756733741949,2.39922286,200.43,200.36,7.71]
[1756733742146,2.39922286,200.42,200.36,7.71]
[1756733742344,2.41,200.54,200.4,4.45666609]
[1756733742651,6.87,200.54,200.41,7.71]
[1756733743048,6.87,200.54,200.43,4.45666609]
[1756733743346,26.5,200.58,200.49,4.45666609]
[1756733743543,2.45,200.61,200.5,7.71]
[1756733743749,38.74,200.6,200.5,7.71]
[1756733744045,2.45,200.59,200.5,7.71]
[1756733744453,2.45,200.59,200.53,0.03456403]
[1756733744746,6.90666609,200.59,200.53,0.03456403]
[1756733745950,83.96,200.58,200.53,0.03456403]
[1756733746352,2.45,200.57,200.53,0.03456403]
[1756733747250,83.96,200.58,200.53,0.03456403]
[1756733747452,2.45,200.57,200.53,0.03456403]
[1756733747952,83.96,200.58,200.53,0.03456403]
[1756733748147,2.45,200.57,200.53,0.03456403]
[1756733748751,83.96,200.58,200.53,0.03456403]
[1756733748955,2.45,200.57,200.53,0.03456403]
[1756733749156,83.96,200.58,200.53,0.03456403]
[1756733749455,2.45,200.57,200.53,0.03456403]
[1756733749957,126.4,200.56,200.53,0.03456403]
[1756733750352,337.67,200.61,200.53,0.03456403]
[1756733750550,126.34,200.6,200.53,0.03456403]
[1756733751752,2.45,200.59,200.53,0.03456403]
[1756733752753,126.34,200.6,200.42,7.71]
[1756733752754,2.41,200.54,200.42,7.71]
[1756733752948,4.45666609,200.52,200.42,7.71]
[1756733753152,2.41,200.51,200.42,7.71]
[1756733754055,0.03347577,200.49,200.42,7.71]
[1756733754750,2.41,200.48,200.37,7.71]
[1756733754951,126.48,200.47,200.37,7.71]
[1756733755846,0.03169955,200.44,200.37,7.71]
[1756733758056,2.39,200.43,200.28,7.71]
[1756733758557,6.84666609,200.43,200.28,7.71]
[1756733759058,0.03601556,200.38,200.28,7.71]
[1756733759656,0.03601556,200.38,200.3,4.45666609]
[1756733759858,0.03601556,200.38,200.31,7.71]
[1756733760052,19.9,200.42,200.31,7.71]
[1756733760354,2.39,200.44,200.34,7.71]
[1756733761055,2.39,200.42,200.34,7.71]
[1756733766557,2.39,200.42,200.24,7.71]
[1756733766763,2.39,200.4,200.26,7.71]
[1756733767057,2.39,200.37,200.26,7.71]
[1756733767259,0.03423057,200.35,200.26,7.71]
[1756733768458,69.31423057,200.35,200.26,7.71]
[1756733770753,2.42,200.34,200.21,8.0]
[1756733771266,72.38,200.33,200.22,8.0]
[1756733771465,0.03650163,200.3,200.22,8.0]
[1756733776269,0.03650163,200.3,200.23,8.0]
[1756733781975,2.45650163,200.3,200.23,8.0]
[1756733782183,2.45650163,200.3,200.16,8.0]
[1756733782681,2.42,200.3,200.16,8.0]
[1756733782876,0.0352757,200.25,200.16,8.0]
[1756733783874,0.0352757,200.25,200.18,4.45666609]
[1756733784077,0.0352757,200.25,200.19,8.0]
[1756733785973,2.88,200.32,200.25,2.79235668]
[1756733786175,2.88,200.32,200.25,10.79235668]
[1756733786881,2.42,200.34,200.25,8.0]
[1756733787179,2.42,200.34,200.26,2.8253494]
[1756733787577,5.57652244,200.51,200.3,8.0]
[1756733787882,2.45,200.44,200.33,8.0]
[1756733788280,128.69,200.44,200.36,0.03429766]
[1756733788477,128.69,200.44,200.37,8.0]
[1756733788980,126.24,200.44,200.37,8.0]
[1756733789574,335.6,200.49,200.37,8.0]
[1756733789781,335.6,200.49,200.38,8.0]
[1756733790375,335.6,200.49,200.41,0.03574976]
[1756733790882,335.6,200.49,200.41,8.03574976]
[1756733793089,2.45,200.48,200.41,8.03574976]
[1756733793485,2.45,200.48,200.41,0.03574976]
[1756733794988,6.91411693,200.48,200.41,0.03574976]
[1756733795891,2.45,200.44,200.41,0.03574976]
[1756733796095,2.45,200.42,200.41,0.03574976]
[1756733796792,4.46411693,200.45,200.41,0.03574976]
[1756733797089,128.71,200.44,200.41,0.03574976]
[1756733797394,2.45,200.43,200.41,0.03574976]
[1756733799293,126.26,200.44,200.41,0.03574976]
[1756733799596,126.26,200.44,200.41,7.52574976]
[1756733799805,335.6,200.49,200.41,0.03574976]
[1756733800094,126.22,200.48,200.41,0.03574976]
[1756733800699,2.45,200.52,200.42,7.49]
[1756733800898,38.0,200.53,200.42,7.49]
[1756733801097,38.0,200.52,200.42,7.49]
[1756733801300,72.76,200.52,200.45,7.49]
[1756733801497,72.76,200.52,200.47,4.46411693]
[1756733801692,72.76,200.52,200.48,7.49]
[1756733802091,72.76,200.52,200.47,4.46411693]
[1756733802300,72.76,200.52,200.48,7.49]
[1756733802699,2.45,200.56,200.47,4.46411693]
[1756733802899,108.38,200.55,200.48,7.49]
[1756733803100,108.38,200.55,200.4,12.52]
[1756733803300,108.38,200.55,200.44,11.95411693]
[1756733803502,108.38,200.55,200.49,0.03242484]
[1756733804602,2.45,200.54,200.49,0.03242484]
[1756733804898,108.38,200.55,200.49,0.03242484]
[1756733805207,2.45,200.54,200.49,0.03242484]
[1756733805498,108.38,200.55,200.49,0.03242484]
[1756733806202,2.45,200.54,200.49,0.03242484]
[1756733806405,108.38,200.55,200.49,0.03242484]
[1756733806600,2.45,200.54,200.49,0.03242484]
[1756733806806,108.38,200.55,200.49,0.03242484]
[1756733806997,2.45,200.54,200.49,0.03242484]
[1756733807807,4.46411693,200.53,200.49,0.03242484]
[1756733808007,2.41,200.49,200.4,7.49]
[1756733808301,4.46411693,200.5,200.36,7.49]
[1756733808302,2.41,200.47,200.36,7.49]